lending/lending_fUSD_20251111
["ID","MTS","AMOUNT","RATE_DAILY","PERIOD"]
[393622591,1762861831821,-913.58358737,0.00019209,2]
[393622592,1762861831830,-195.0,0.00019209,2]
[393622593,1762861831839,-250.0,0.00019209,2]
[393622594,1762861831848,-300.0,0.00022721,2]
[393622595,1762861831858,-860.11000288,0.00022722,2]
[393622596,1762861831867,-500.0,0.00024899,2]
[393622597,1762861831876,-8657.65,0.00027163,2]
[393622598,1762861831886,-150.0,0.00027163,2]
[393622599,1762861831895,-8035.98199902,0.0003,2]
[393622600,1762861831904,-166.79265532,0.0003,120]
[393622601,1762861831914,-157.114356,0.00032504,2]
[393622602,1762861831923,-162.264262,0.00032504,2]
[393622603,1762861831932,-153.831672,0.00032504,2]
[393622604,1762861831942,-500.0,0.00032599,7]
[393622605,1762861831951,-226.58,0.00033015,2]
[393622606,1762861831960,-1028.98,0.00033345,2]
[393622607,1762861831970,-152.0,0.00034154,3]
[393622608,1762861831980,-3312.81246455,0.00035,5]
[393622609,1762861831989,-361.0,0.0003536,2]
[393622610,1762861831998,-150.0,0.00035556,2]
[393622611,1762861832007,-157.723,0.00035658,42]
[393622612,1762861832017,-1471.296,0.00035658,42]
[393622613,1762861832027,-2041.92,0.00035658,2]
[393622614,1762861832036,-173.16,0.00035685,2]
[393622615,1762861832046,-656.47296886,0.00035718,2]
[393622616,1762861832055,-1000.0,0.00035755,2]
[393622617,1762861832065,-36289.64,0.00035755,2]
[393622618,1762861832075,-769.93743262,0.0003588,2]
[393622619,1762861832084,-360.0,0.00036001,7]
[393622620,1762861832093,-883.40189637,0.00036042,2]
[393622621,1762861832102,-150.05,0.0003613,2]
[393622622,1762861832111,-150.0,0.00036147,2]
[393622623,1762861832120,-163.850523,0.000362,2]
[393622624,1762861832130,-157.114356,0.000362,2]
[393622625,1762861832139,-162.264262,0.000362,2]
[393622626,1762861832148,-3.78127401,0.000362,2]
[393622627,1762861832161,-150.05039799,0.000362,2]
[393622628,1762861832170,-996.86636012,0.00036204,2]
[393622629,1762861832179,-216.49227715,0.00036232,2]
[393622630,1762861832188,-265.53538305,0.000363,7]
[393622631,1762861832199,-950.26546194,0.000363,7]
[393622632,1762861832214,-185.19915501,0.000363,7]
[393622633,1762861832223,-1110.33082388,0.00036367,2]
[393622634,1762861832232,-1223.79528763,0.00036529,2]
[393622635,1762861832242,-1337.25975139,0.00036691,2]
[393622636,1762861832251,-1794.0,0.00036739,2]
[393622637,1762861832260,-300.0,0.00036796,2]
[393622638,1762861832270,-1450.72421514,0.00036853,2]
[393622639,1762861832281,-1852.42,0.00036957,2]
[393622640,1762861832290,-1799.0,0.00036959,2]
[393622641,1762861832299,-300.0,0.00036962,2]
[393622642,1762861832308,-1564.18867889,0.00037015,2]
[393622643,1762861832317,-300.0,0.00037123,2]
[393622644,1762861832326,-300.0,0.00037157,2]
[393622645,1762861832335,-1795.0,0.00037162,120]
[393622646,1762861832345,-1677.65314265,0.00037178,2]
[393622647,1762861832354,-322.29297541,0.00037326,2]
[393622648,1762861832363,-1791.1176064,0.0003734,2]
[393622649,1762861832373,-300.0,0.00037457,2]
[393622650,1762861832382,-1536.70186999,0.0003747,2]
[393622651,1762861832391,-1000.0,0.000375,2]
[393622652,1762861832400,-1000.0,0.000375,7]
[393622653,1762861832410,-1904.58207016,0.00037502,2]
[393622654,1762861832419,-300.0,0.00037517,2]
[393622655,1762861832429,-300.0,0.0003762,2]
[393622656,1762861832438,-300.0,0.00037639,2]
[393622657,1762861832447,-300.0,0.0003765,2]
[393622658,1762861832456,-300.0,0.00037653,2]
[393622659,1762861832465,-300.0,0.00037658,2]
[393622660,1762861832474,-300.0,0.00037661,2]
[393622661,1762861832483,-2018.04653391,0.00037664,2]
[393622662,1762861832492,-300.0,0.00037669,2]
[393622663,1762861832505,-1121.65516157,0.00037708,2]
[393622664,1762861832517,-2313.6027736,0.00037708,2]
[393622665,1762861832528,-1564.74206483,0.00037708,2]
[393622666,1762861832538,-18.57990987,0.00037732,2]
[393622667,1762861832548,-281.42009013,0.00037732,2]
[393622668,1762861832557,-346.99990987,0.00037745,2]
[393622669,1762861832568,-519.94715858,0.00037745,2]
[393622670,1762861832582,-412.40258784,0.00037745,2]
[393622671,1762861832593,-514.65034371,0.00037745,2]
[393622672,1762861832602,-874.38,0.0003777,5]
[393622673,1762861832612,-1794.0,0.0003777,7]
[393622674,1762861832621,-300.0,0.00037783,2]
[393622675,1762861832630,-1769.46021931,0.00037792,7]
[393622676,1762861832642,-24.53978069,0.00037792,7]
[393622677,1762861832652,-390.37271931,0.00037826,2]
[393622680,1762861837572,-437.27305822,0.00037161,15]
[393622681,1762861837625,-62.72694178,0.00037161,15]
[393622682,1762861837635,-500.0,0.00037161,15]
[393622683,1762861837644,-500.0,0.00037161,15]
[393622684,1762861837653,-111.33976782,0.00037161,15]
[393622685,1762861837666,-388.66023218,0.00037161,15]
[393622686,1762861837675,-500.0,0.00037161,15]
[393622687,1762861837685,-500.0,0.00037161,15]
[393622688,1762861837694,-500.0,0.00037161,15]
[393622689,1762861837704,-500.0,0.00037161,15]
[393622690,1762861837713,-500.0,0.00037161,15]
[393622691,1762861837732,-500.0,0.00037161,15]
[393622692,1762861837742,-500.0,0.00037161,15]
[393622693,1762861837752,-500.0,0.00037161,15]
[393622694,1762861837761,-500.0,0.00037161,15]
[393622695,1762861837771,-500.0,0.00037161,15]
[393622696,1762861837781,-500.0,0.00037161,15]
[393622698,1762861837790,-500.0,0.00037161,15]
[393622700,1762861837800,-500.0,0.00037161,15]
[393622702,1762861837809,-500.0,0.00037161,15]
[393622704,1762861837819,-500.0,0.00037161,15]
[393622706,1762861837828,-500.0,0.00037161,15]
[393622708,1762861837838,-500.0,0.00037161,15]
[393622710,1762861837849,-500.0,0.00037161,15]
[393622712,1762861837859,-500.0,0.00037161,15]
[393622714,1762861837868,-500.0,0.00037161,15]
[393622717,1762861837878,-481.05243923,0.00037161,15]
[393622719,1762861837888,-1741.13827835,0.00037826,2]
[393622721,1762861837898,-300.0,0.00037843,2]
[393622723,1762861837907,-300.0,0.00037855,2]
[393622725,1762861837917,-300.0,0.00037868,2]
[393622728,1762861837928,-1794.0,0.00037871,2]
[393622730,1762861837938,-300.0,0.00037942,2]
[393622732,1762861837947,-300.0,0.00037984,2]
[393622733,1762861837957,-2244.97546142,0.00037989,2]
[393622734,1762861837967,-300.0,0.00037994,2]
[393622735,1762861837976,-300.0,0.00038042,2]
[393622736,1762861837986,-2358.43992517,0.00038151,2]
[393622737,1762861837995,-150.0,0.00038172,7]
[393622738,1762861838006,-300.0,0.00038195,2]
[393622739,1762861838016,-150.0,0.00038195,7]
[393622740,1762861838026,-150.0,0.00038199,7]
[393622741,1762861838036,-500.0,0.00038219,7]
[393622742,1762861838047,-500.0,0.00038219,7]
[393622743,1762861838056,-500.0,0.00038219,7]
[393622744,1762861838066,-300.0,0.00038226,2]
[393622745,1762861838076,-300.0,0.00038252,2]
[393622746,1762861838090,-1000.0,0.00038276,7]
[393622747,1762861838100,-2471.90438893,0.00038313,2]
[393622748,1762861838110,-217.96580628,0.00038317,2]
[393622749,1762861838121,-150.0,0.00038322,7]
[393622750,1762861838130,-150.0,0.00038347,7]
[393622751,1762861838140,-500.0,0.00038356,2]
[393622752,1762861838151,-150.0,0.00038356,5]
[393622753,1762861838167,-217.96580628,0.00038371,2]
[393622754,1762861838178,-1653.22241756,0.00038371,2]
[393622755,1762861838188,-300.0,0.00038385,2]
[393622756,1762861838199,-150.0,0.00038403,7]
[393622757,1762861838209,-1250.53,0.00038416,2]
[393622758,1762861838220,-300.0,0.00038421,2]
[393622759,1762861838230,-300.0,0.00038429,2]
[393622760,1762861838241,-1794.0,0.00038448,2]
[393622761,1762861838252,-300.0,0.0003845,2]
[393622762,1762861838262,-2585.36885268,0.00038475,2]
[393622763,1762861838273,-300.0,0.00038489,2]
[393622764,1762861838287,-300.0,0.00038492,2]
[393622765,1762861838298,-300.0,0.00038504,2]
[393622766,1762861838309,-300.0,0.00038516,2]
[393622767,1762861838319,-300.0,0.00038517,2]
[393622768,1762861838329,-1250.53,0.00038526,2]
[393622769,1762861838339,-2143.0,0.00038531,2]
[393622770,1762861838349,-906.0,0.00038531,2]
[393622771,1762861838359,-1000.0,0.00038547,2]
[393622772,1762861838370,-279.9808,0.00038547,2]
[393622773,1762861838379,-736.4187,0.00038547,2]
[393622774,1762861838389,-2500.0,0.00038547,2]
[393622775,1762861838398,-152.41512672,0.00038549,2]
[393622776,1762861838409,-300.0,0.0003855,2]
[393622777,1762861838420,-150.0,0.00038552,7]
[393622778,1762861838429,-300.0,0.00038555,2]
[393622779,1762861838439,-6604.45212214,0.00038558,2]
[393622780,1762861838449,-172.49780038,0.00038558,15]
[393622781,1762861838460,-2751.0,0.0003863,120]
[393622782,1762861838470,-300.0,0.0003863,2]
[393622783,1762861838484,-2698.83331645,0.00038637,2]
[393622784,1762861838494,-2000.0,0.00038646,2]
[393622785,1762861838507,-500.0,0.00038647,2]
[393622786,1762861838517,-500.0,0.00038647,2]
[393622787,1762861838527,-500.0,0.00038647,2]
[393622788,1762861838539,-500.0,0.00038647,2]
[393622789,1762861838548,-500.0,0.00038647,2]
[393622790,1762861838558,-500.0,0.00038647,2]
[393622791,1762861838568,-500.0,0.00038647,2]
[393622792,1762861838580,-500.0,0.00038647,2]
[393622793,1762861838590,-299.98409601,0.00038647,2]
[393622794,1762861838600,-420000.0,0.00038647,2]
[393622795,1762861838610,-162.76175568,0.00038658,30]
[393622796,1762861838619,-1875.03565685,0.00038662,2]
[393622797,1762861838629,-217.96580628,0.00038666,2]
[393622798,1762861838639,-500.0,0.00038673,2]
[393622799,1762861838649,-500.0,0.00038673,5]
[393622800,1762861838659,-329.81666734,0.00038673,5]
[393622801,1762861838669,-500.0,0.00038673,5]
[393622802,1762861838680,-300.0,0.00038682,2]
[393622803,1762861838694,-6604.45212212,0.0003869,2]
[393622804,1762861838703,-371.73,0.000387,120]
[393622805,1762861838714,-300.0,0.00038701,2]
[393622806,1762861838723,-300.0,0.00038722,2]
[393622807,1762861838733,-150.0,0.00038747,7]
[393622808,1762861838743,-580.53,0.00038747,2]
[393622809,1762861838753,-500.0,0.00038762,7]
[393622810,1762861838763,-500.0,0.00038762,7]
[393622811,1762861838773,-300.0,0.00038762,2]
[393622812,1762861838782,-450.0,0.00038771,7]
[393622813,1762861838791,-166.66,0.00038774,2]
[393622814,1762861838801,-152.41512669,0.00038788,2]
[393622815,1762861838811,-300.0,0.0003879,2]
[393622816,1762861838821,-1653.22241756,0.00038794,2]
[393622817,1762861838830,-189.98,0.00038797,2]
[393622818,1762861838840,-168.54112068,0.000388,120]
[393622819,1762861838849,-300.0,0.00038804,2]
[393622820,1762861838860,-6604.45212212,0.00038821,2]
[393622821,1762861838870,-1986.73990875,0.0003883,2]
[393622822,1762861838884,-150.0,0.0003883,7]
[393622823,1762861838895,-200.0,0.00038839,6]
[393622824,1762861838904,-200.0,0.00038839,6]
[393622825,1762861838915,-390.62602589,0.00038843,11]
[393622826,1762861838925,-390.6260258,0.00038843,11]
[393622827,1762861838935,-390.6260258,0.00038843,11]
[393622828,1762861838946,-390.6260258,0.00038843,11]
[393622829,1762861838955,-150.0,0.00038856,7]
[393622830,1762861838966,-300.0,0.00038859,2]
[393622831,1762861838976,-500.0,0.00038863,7]
[393622832,1762861838986,-512.69,0.00038863,7]
[393622833,1762861838997,-500.0,0.00038863,7]
[393622834,1762861839007,-219.57,0.00038863,7]
[393622835,1762861839017,-500.0,0.00038863,7]
[393622836,1762861839027,-500.0,0.00038863,7]
[393622837,1762861839038,-500.0,0.00038863,7]
[393622838,1762861839048,-500.0,0.00038863,7]
[393622839,1762861839059,-500.0,0.00038863,7]
[393622840,1762861839070,-500.0,0.00038863,7]
[393622841,1762861839080,-500.0,0.00038863,7]
[393622842,1762861839091,-500.0,0.00038863,7]
[393622843,1762861839103,-500.0,0.00038863,7]
[393622844,1762861839114,-500.0,0.00038863,7]
[393622845,1762861839124,-500.0,0.00038863,7]
[393622846,1762861839135,-500.0,0.00038863,7]
[393622847,1762861839145,-500.0,0.00038863,7]
[393622848,1762861839155,-500.0,0.00038863,7]
[393622849,1762861839167,-150.0,0.00038881,7]
[393622850,1762861839178,-300.0,0.00038892,2]
[393622851,1762861839189,-390.6260258,0.00038897,11]
[393622852,1762861839199,-1300.0,0.000389,14]
[393622853,1762861839209,-204.43952516,0.00038904,5]
[393622854,1762861839219,-300.0,0.00038941,2]
[393622855,1762861839229,-150.0,0.00038948,7]
[393622856,1762861839239,-6604.45212212,0.00038953,2]
[393622857,1762861839250,-2162.89,0.00038969,2]
[393622858,1762861839260,-390.6260258,0.00038981,11]
[393622859,1762861839270,-300.0,0.00038982,2]
[393622860,1762861839280,-2098.44416064,0.00038997,2]
[393622861,1762861839290,-2149.45206844,0.00038999,2]
[393622862,1762861839300,-2600.0,0.00039,14]
[393622863,1762861839310,-304.7216755,0.00039,120]
[393622864,1762861839320,-5550.33054494,0.00039,2]
[393622865,1762861839330,-150.0,0.00039,120]
[393622866,1762861839341,-300.0,0.00039001,2]
[393622867,1762861839351,-300.0,0.00039015,93]
[393622868,1762861839361,-152.41512669,0.00039027,2]
[393622869,1762861839372,-300.0,0.00039058,2]
[393622870,1762861839382,-217.96580628,0.00039064,2]
[393622871,1762861839392,-390.6260258,0.00039066,11]
[393622872,1762861839402,-300.0,0.00039072,2]
[393622873,1762861839412,-208.85288909,0.00039072,7]
[393622874,1762861839422,-4604.84130139,0.00039075,4]
[393622875,1762861839432,-6604.45212212,0.00039085,2]
[393622876,1762861839442,-1653.22241756,0.00039086,2]
[393622877,1762861839451,-4604.84130139,0.0003909,4]
[393622878,1762861839460,-150.0,0.00039094,7]
[393622879,1762861839470,-3900.0,0.000391,14]
[393622880,1762861839479,-505.87243499,0.00039105,120]
[393622881,1762861839489,-300.0,0.00039123,2]
[393622883,1762861839504,-300.0,0.00039133,2]
[393622884,1762861839516,-300.0,0.00039135,2]
[393622885,1762861839527,-300.0,0.00039146,2]
[393622886,1762861839538,-390.6260258,0.00039151,11]
[393622887,1762861839549,-2210.14841254,0.00039164,2]
[393622888,1762861839560,-189.98,0.0003917,2]
[393622889,1762861839572,-4604.84130139,0.0003919,4]
[393622890,1762861839586,-612.0,0.00039191,7]
[393622891,1762861839606,-1000.0,0.00039192,7]
[393622892,1762861839621,-2000.0,0.00039199,2]
[393622893,1762861839631,-5200.0,0.000392,14]
[393622894,1762861839642,-4604.84130139,0.00039206,4]
[393622895,1762861839651,-6604.45212212,0.00039216,2]
[393622896,1762861839663,-500.0,0.00039221,5]
[393622897,1762861839682,-1000.0,0.00039225,7]
[393622898,1762861839692,-390.6260258,0.00039235,11]
[393622899,1762861839702,-1653.22241759,0.00039246,2]
[393622900,1762861839712,-300.0,0.00039249,2]
[393622901,1762861839722,-300.0,0.0003926,2]
[393622902,1762861839731,-23024.2065069,0.0003926,4]
[393622903,1762861839741,-152.41512669,0.00039265,2]
[393622904,1762861839751,-44894.5778389,0.0003927,2]
[393622905,1762861839762,-300.0,0.00039282,2]
[393622906,1762861839772,-300.0,0.00039282,2]
[393622907,1762861839782,-4604.84130139,0.0003929,4]
[393622908,1762861839791,-6500.0,0.000393,14]
[393622909,1762861839801,-300.0,0.000393,2]
[393622910,1762861839811,-300.0,0.000393,2]
[393622911,1762861839820,-300.0,0.000393,2]
[393622912,1762861839830,-217.96580629,0.00039313,2]
[393622913,1762861839840,-150.0,0.00039316,7]
[393622914,1762861839850,-390.6260258,0.0003932,11]
[393622915,1762861839860,-300.0,0.00039325,2]
[393622916,1762861839870,-2321.85266444,0.00039331,2]
[393622917,1762861839880,-150.0,0.00039331,7]
[393622918,1762861839890,-4604.84130139,0.00039338,4]
[393622919,1762861839900,-300.0,0.00039343,2]
[393622920,1762861839912,-300.0,0.00039344,2]
[393622921,1762861839922,-151.0,0.00039345,14]
[393622922,1762861839932,-6604.45212212,0.00039348,2]
[393622923,1762861839942,-4604.84130139,0.00039348,4]
[393622924,1762861839952,-1000.0,0.00039382,7]
[393622925,1762861839961,-500.0,0.00039399,7]
[393622926,1762861839971,-157.114356,0.000394,60]
[393622927,1762861839981,-153.831672,0.000394,60]
[393622928,1762861839991,-1300.0,0.000394,14]
[393622929,1762861840000,-390.6260258,0.00039404,11]
[393622930,1762861840011,-300.0,0.00039406,2]
[393622931,1762861840021,-150.0,0.00039424,7]
[393622932,1762861840031,-500.0,0.00039425,2]
[393622933,1762861840041,-150.0,0.00039425,2]
[393622934,1762861840054,-150.0,0.00039425,2]
[393622935,1762861840064,-500.0,0.00039425,2]
[393622936,1762861840073,-150.0,0.00039425,2]
[393622937,1762861840083,-150.0,0.00039425,2]
[393622938,1762861840093,-500.0,0.00039425,2]
[393622939,1762861840103,-150.0,0.00039425,2]
[393622940,1762861840112,-500.0,0.00039425,2]
[393622941,1762861840121,-150.0,0.00039425,2]
[393622942,1762861840131,-500.0,0.00039425,2]
[393622943,1762861840141,-500.0,0.00039425,2]
[393622944,1762861840151,-4604.84130139,0.00039433,4]
[393622945,1762861840160,-2500.0,0.00039434,14]
[393622946,1762861840170,-311.91611793,0.0003944,120]
[393622947,1762861840180,-2500.0,0.00039443,14]
[393622948,1762861840189,-300.0,0.00039449,2]
[393622949,1762861840199,-4604.84130139,0.0003945,4]
[393622950,1762861840209,-2500.0,0.00039452,14]
[393622951,1762861840219,-1000.0,0.00039452,120]
[393622952,1762861840229,-1000.0,0.00039452,120]
[393622953,1762861840238,-1000.0,0.00039452,120]
[393622954,1762861840248,-1000.0,0.00039452,120]
[393622955,1762861840257,-585.19739311,0.00039452,120]
[393622956,1762861840267,-2500.0,0.0003946,14]
[393622957,1762861840277,-2500.0,0.00039469,14]
[393622958,1762861840286,-4604.84130139,0.0003947,4]
[393622959,1762861840296,-4604.84130139,0.00039475,4]
[393622960,1762861840306,-4604.84130139,0.00039477,4]
[393622962,1762861840315,-2500.0,0.00039478,14]
[393622963,1762861840324,-6604.45212212,0.0003948,2]
[393622964,1762861840334,-375.90278448,0.00039484,2]
[393622965,1762861840343,-150.0,0.00039485,2]
[393622966,1762861840353,-150.0,0.00039485,2]
[393622967,1762861840362,-500.0,0.00039485,2]
[393622968,1762861840371,-500.0,0.00039485,2]
[393622969,1762861840381,-150.0,0.00039485,2]
[393622970,1762861840390,-500.0,0.00039485,2]
[393622971,1762861840399,-500.0,0.00039485,2]
[393622972,1762861840409,-500.0,0.00039485,2]
[393622973,1762861840422,-500.0,0.00039485,2]
[393622974,1762861840432,-150.0,0.00039485,2]
[393622975,1762861840441,-500.0,0.00039485,2]
[393622976,1762861840451,-150.0,0.00039485,2]
[393622977,1762861840460,-500.0,0.00039485,2]
[393622978,1762861840470,-500.0,0.00039485,2]
[393622979,1762861840479,-150.0,0.00039485,2]
[393622980,1762861840489,-500.0,0.00039485,2]
[393622981,1762861840500,-500.0,0.00039485,2]
[393622982,1762861840511,-500.0,0.00039485,2]
[393622983,1762861840520,-150.0,0.00039485,2]
[393622984,1762861840530,-2500.0,0.00039487,14]
[393622985,1762861840539,-390.6260258,0.00039489,11]
[393622986,1762861840550,-1000.0,0.00039492,7]
[393622987,1762861840560,-4604.84130139,0.00039494,4]
[393622988,1762861840570,-2500.0,0.00039496,14]
[393622989,1762861840582,-2433.55691633,0.00039499,2]
[393622990,1762861840592,-150.0,0.000395,60]
[393622991,1762861840601,-1300.0,0.000395,14]
[393622992,1762861840611,-152.41512669,0.00039504,2]
[393622993,1762861840620,-2500.0,0.00039504,14]
[393622994,1762861840630,-2500.0,0.00039513,14]
[393622995,1762861840640,-1000.0,0.00039515,120]
[393622996,1762861840650,-150.0,0.0003952,7]
[393622997,1762861840661,-4604.84130139,0.00039521,4]
[393622998,1762861840671,-2500.0,0.00039522,14]
[393622999,1762861840680,-375.90278445,0.00039527,2]
[393623000,1762861840690,-9209.68260278,0.00039528,4]
[393623001,1762861840700,-4604.84130139,0.0003953,4]
[393623002,1762861840710,-2500.0,0.00039531,14]
[393623003,1762861840719,-18419.3652056,0.00039538,4]
[393623004,1762861840729,-2500.0,0.0003954,14]
[393623005,1762861840739,-150.0,0.0003954,7]
[393623006,1762861840747,-200.0,0.00039542,20]
[393623007,1762861840758,-200.0,0.00039542,20]
[393623008,1762861840767,-200.0,0.00039542,20]
[393623009,1762861840776,-200.0,0.00039543,20]
[393623010,1762861840786,-1586.73367646,0.00039544,2]
[393623011,1762861840795,-171.62032392,0.00039544,13]
[393623012,1762861840805,-4604.84130139,0.00039548,4]
[393623013,1762861840818,-33287.216,0.00039548,2]
[393623014,1762861840827,-1000.0,0.00039548,2]
[393623015,1762861840836,-2500.0,0.00039548,14]
[393623016,1762861840846,-4604.84130139,0.00039555,4]
[393623017,1762861840856,-2500.0,0.00039557,14]
[393623018,1762861840866,-5000.0,0.00039558,30]
[393623019,1762861840876,-500.0,0.00039562,2]
[393623020,1762861840885,-150.0,0.00039562,2]
[393623021,1762861840895,-150.0,0.00039562,2]
[393623022,1762861840905,-500.0,0.00039562,2]
[393623023,1762861840915,-361.71538546,0.00039562,2]
[393623024,1762861840925,-500.0,0.00039562,2]
[393623025,1762861840935,-500.0,0.00039562,2]
[393623026,1762861840945,-150.0,0.00039562,2]
[393623027,1762861840955,-4604.84130139,0.00039565,4]
[393623028,1762861840965,-2500.0,0.00039566,14]
[393623029,1762861840975,-300.0,0.00039568,2]
[393623030,1762861840984,-375.90278445,0.0003957,2]
[393623031,1762861840994,-390.6260258,0.00039574,11]
[393623032,1762861841006,-2500.0,0.00039575,14]
[393623033,1762861841015,-300.0,0.0003958,2]
[393623034,1762861841025,-4604.84130139,0.0003958,4]
[393623035,1762861841035,-2500.0,0.00039584,14]
[393623036,1762861841044,-4604.84130139,0.00039591,4]
[393623037,1762861841054,-2500.0,0.00039592,14]
[393623038,1762861841248,-724.56959035,0.000396,30]
[393623039,1762861841276,-1300.0,0.000396,14]
[393623040,1762861841286,-1024.38,0.000396,14]
[393623041,1762861841296,-4604.84130139,0.000396,4]
[393623042,1762861841306,-2500.0,0.00039601,14]
[393623043,1762861841318,-4604.84130139,0.00039601,4]
[393623044,1762861841328,-4604.84130139,0.00039609,4]
[393623045,1762861841339,-2500.0,0.0003961,14]
[393623046,1762861841348,-3574.72075577,0.00039611,2]
[393623047,1762861841358,-6604.45212212,0.00039611,2]
[393623048,1762861841368,-375.90278445,0.00039614,2]
[393623049,1762861841377,-4604.84130139,0.00039618,4]
[393623050,1762861841387,-2500.0,0.00039619,14]
[393623051,1762861841397,-543.64087408,0.00039619,2]
[393623052,1762861841406,-150.0,0.00039622,2]
[393623053,1762861841417,-150.0,0.00039622,2]
[393623054,1762861841427,-500.0,0.00039622,2]
[393623055,1762861841436,-500.0,0.00039622,2]
[393623056,1762861841445,-150.0,0.00039622,2]
[393623057,1762861841455,-500.0,0.00039622,2]
[393623058,1762861841465,-500.0,0.00039622,2]
[393623059,1762861841475,-500.0,0.00039622,2]
[393623060,1762861841484,-500.0,0.00039622,2]
[393623061,1762861841494,-150.0,0.00039622,2]
[393623062,1762861841507,-500.0,0.00039622,2]
[393623063,1762861841517,-150.0,0.00039622,2]
[393623064,1762861841526,-500.0,0.00039622,2]
[393623065,1762861841540,-604.99215178,0.00039622,2]
[393623066,1762861841550,-150.0,0.00039622,2]
[393623067,1762861841559,-500.0,0.00039622,2]
[393623068,1762861841568,-500.0,0.00039622,2]
[393623069,1762861841579,-500.0,0.00039622,2]
[393623070,1762861841588,-73677.4608222,0.00039623,4]
[393623071,1762861841597,-4604.84130139,0.00039626,4]
[393623072,1762861841606,-2500.0,0.00039628,14]
[393623073,1762861841615,-4604.84130139,0.00039633,4]
[393623074,1762861841624,-2500.0,0.00039636,14]
[393623075,1762861841634,-151.0,0.0003964,14]
[393623076,1762861841646,-151.0,0.0003964,14]
[393623077,1762861841657,-150.0,0.00039642,20]
[393623078,1762861841669,-1010626.98462831,0.00039643,30]
[393623079,1762861841830,-465.5,0.00039643,30]
[393623080,1762861841994,-678.15998133,0.00039643,30]
[393623081,1762861842007,-527.95,0.00039643,30]
[393623082,1762861842024,-359.59660224,0.00039643,30]
[393623083,1762861842035,-356.68236483,0.00039643,30]
[393623084,1762861842047,-644.38,0.00039643,30]
[393623085,1762861842058,-19396.20454756,0.00039643,30]
[393623094,1762861844698,-150.0,0.00039633,7]
[393623095,1762861844707,-259337.05384313,0.00039643,30]
[393623096,1762861844750,-345.69,0.00039643,30]
[393623097,1762861844804,-79425.1980028,0.00039643,30]
[393623098,1762861844903,-220.5134589,0.00039643,30]
[393623100,1762861845642,-661727.10561476,0.00039643,30]
[393623101,1762861845853,-468.65005224,0.00039643,30]
[393623102,1762861846063,-20094.01153004,0.00039643,30]
[393623109,1762862182925,227.65,0.00013699,2]
[393623139,1762862603820,1639.43,0.00013,2]
[393623159,1762863031673,-158.5068257,0.00020187,2]
[393623161,1762863031682,-227.65,0.00020187,2]
[393623163,1762863031693,-14.16963719,0.00022206,2]
[393623164,1762863031726,-235.83036281,0.00022206,2]
[393623165,1762863031736,-227.65,0.00026676,2]
[393623166,1762863031745,-45.85229952,0.00029853,2]
[393623167,1762863031757,-104.14770048,0.00029853,2]
[393623168,1762863031767,-227.65,0.00033165,2]
[393623169,1762863031777,-500.0,0.00033178,2]
[393623170,1762863031787,-150.0,0.00033366,2]
[393623171,1762863031796,-1065.10429363,0.00033518,2]
[393623172,1762863031806,-1249.19639377,0.0003367,2]
[393623173,1762863031816,-1433.2884939,0.00033822,2]
[393623174,1762863031826,-1600.0,0.00033973,3]
[393623175,1762863031835,-1617.38059404,0.00033974,2]
[393623176,1762863031845,-300.0,0.00034126,2]
[393623177,1762863031854,-1801.47269417,0.00034127,2]
[393623178,1762863031863,-1985.5647943,0.00034279,2]